Cogmind - Beta 14 @@@ ROGUE MODE // 2024.08.10 @ 10:46:46 Player: TheProctologist Result: Self-destructed Performance ------------- Evolutions (4) 2000 Regions Visited (8) 1600 Robots Destroyed (37) 185 Value Destroyed (931) 931 Prototype IDs (1) 20 Alien Tech Used (0) 0 Bonus (276) 276 TOTAL SCORE: 5012 Bonus ------- Follower Combat Kills 355 Friendly Fire -79 Cogmind --------- Core Integrity 436/850 Matter 154/300 Energy 210/210 System Corruption 0% Temperature Critical (566) Movement Treading (240) Ox1 Location -6/Lower Caves Parts ------- > --- POWER (2) -------- Light Nuclear Core Micro Nuclear Core > --- PROPULSION (3) --- Medium Treads Heavy Treads > --- UTILITY (5) ------ Advanced Heat Sink Large Storage Unit Triangulator > --- WEAPON (5) ------- Plasma Rifle Beamcaster Slug Cannon > --- INVENTORY (15) --- Light Nuclear Core Improved Deuterium Engine Antimatter Reactor Light Treads Medium Treads Medium Treads Backup Propulsion III Improved Cooling System ECM Suite Improved System Restoration Module High-powered Shock Rifle Beamcaster Long-range Missile Launcher Faulty Scatter Rocket Array Peak State ------------ > --- POWER ------------ Light Nuclear Core Micro Nuclear Core > --- PROPULSION ------- Medium Treads Heavy Treads > --- UTILITY ---------- Advanced Heat Sink Large Storage Unit Triangulator Heavy Reactive Plating > --- WEAPON ----------- High-powered Shock Rifle Plasma Rifle Beamcaster Slug Cannon Long-range Missile Launcher > --- INVENTORY -------- Light Nuclear Core Improved Deuterium Engine Antimatter Reactor Light Treads Medium Treads Medium Treads Backup Propulsion III Improved Cooling System ECM Suite Improved System Restoration Module High-powered Shock Rifle Beamcaster Slug Cannon Scatter Rocket Array Makeshift Spear [Rating: 74] Favorites ----------- Power Micro Nuclear Core Engine Ion Engine Power Core Micro Nuclear Core Propulsion Light Treads Treads Light Treads Wheel Armored Wheel Hover Unit Backup Propulsion III Utility ECM Suite Device ECM Suite Storage Medium Storage Unit Protection Hardened Medium Armor Plating Weapon Beamcaster Energy Gun Beamcaster Energy Cannon Heavy Particle Cannon Ballistic Gun Barrage Gun Ballistic Cannon Gauss Cannon Launcher Subdweller Shrapnel Launcher Piercing Weapon Makeshift Spear Build | -11 -10 -10 -9 -7 -6 -6 -6 -6 ------- Run | Yrd Mat Sub Rec Fac Fac Was Fac Low Slots Evolved 8 | . . . . 6 2 . . . Power 1 | . . . . 1 . . . . Propulsion 1 | . . . . 1 . . . . Utility 3 | . . . . 2 1 . . . Weapon 3 | . . . . 2 1 . . . Parts Attached 60 | 7 7 2 2 20 3 5 12 2 Power 5 | 1 . . . 3 1 . . . Engine 2 | 1 . . . 1 . . . . Core 3 | . . . . 2 1 . . . Reactor . | . . . . . . . . . Propulsion 11 | 2 1 . 2 3 . . 3 . Treads 9 | 2 1 . . 3 . . 3 . Leg . | . . . . . . . . . Wheel 2 | . . . 2 . . . . . Hover . | . . . . . . . . . Flight . | . . . . . . . . . Utility 17 | 2 5 . . 3 . 2 5 . Device 10 | 1 4 . . 2 . 1 2 . Storage 4 | 1 1 . . . . . 2 . Processor . | . . . . . . . . . Hackware . | . . . . . . . . . Protection 3 | . . . . 1 . 1 1 . Artifact . | . . . . . . . . . Weapon 27 | 2 1 2 . 11 2 3 4 2 Energy Gun 11 | 1 1 1 . 4 1 2 1 . Energy Cannon 1 | . . . . 1 . . . . Ballistic Gun 4 | 1 . 1 . 1 . 1 . . Ballistic Cannon 4 | . . . . 1 1 . 1 1 Launcher 3 | . . . . 2 . . 1 . Special Weapon . | . . . . . . . . . Impact Weapon . | . . . . . . . . . Slashing Weapon . | . . . . . . . . . Piercing Weapon 4 | . . . . 2 . . 1 1 Special Melee Weapon . | . . . . . . . . . Unidentified Prototypes 1 | . . . . 1 . . . . Parts Lost 12 | . . 1 . 3 . . 4 4 Power 1 | . . . . 1 . . . . Propulsion 2 | . . 1 . . . . 1 . Utility 3 | . . . . 1 . . 1 1 Weapon 6 | . . . . 1 . . 2 3 Highest Loss Streak 3 | . . 1 . 2 . . 3 3 To Critical Strikes . | . . . . . . . . . Average Slot Usage (%) 94 | . 99 97 94 93 91 98 91 85 Engine 6 | . 14 14 14 6 . . . . Core 7 | . . . . 7 12 13 13 13 Treads 19 | . 27 25 5 18 20 20 14 13 Wheel 1 | . . . 17 3 . . . . Device 16 | . 14 14 14 14 20 21 16 13 Storage 9 | . 14 14 14 7 6 6 6 6 Protection 3 | . . . . 5 . 3 6 5 Energy Gun 15 | . 14 14 14 11 9 17 19 19 Ballistic Gun 7 | . 14 14 14 6 3 3 3 . Ballistic Cannon 3 | . . . . 1 5 6 6 6 Launcher 1 | . . . . 3 6 2 . 5 Peak Build Rating 74 | 9 11 12 15 30 35 49 73 74 Average Rating 34 | 6 9 10 13 24 33 44 58 72 On Entrance 25 | . 9 9 12 15 30 35 49 73 Naked Turns . | . . . . . . . . . Heaviest Build 97 | 13 21 23 23 47 56 62 97 97 Greatest Support 98 | 40 40 40 24 60 60 60 98 98 Greatest Overweight (x) 8 | 3 1 1 1 1 . 1 8 1 Average Overweight (x) . | . . . . . . . . . Largest Inventory Capacity 25 | 8 10 10 10 10 10 10 25 15 Average Capacity 10 | 7 9 10 10 10 10 10 13 15 Most Carried 15 | 4 10 10 10 10 10 10 15 15 Average Carried 10 | 1 8 9 9 9 7 9 11 14 Final Capacity 15 | 8 10 10 10 10 10 10 15 15 Final Carried 15 | 4 10 10 10 9 8 10 15 14 Class Distribution -------------------- 40% | Mutant 19% | Tank 16% | Infiltrator-Tank 12% | Gunner 11% | Infiltrator-Gunner Dominant Class ---------------- Mutant | -10/Materials Mutant | -10/Subcaves Mutant | -9/Recycling Infiltrator-Tank | -7/Factory Infiltrator-Gunner | -6/Factory Gunner | -6/Waste Tank | -6/Factory Tank | -6/Lower Caves Resources | -11 -10 -10 -9 -7 -6 -6 -6 -6 ----------- Run | Yrd Mat Sub Rec Fac Fac Was Fac Low Matter Collected 1181 | 280 59 93 20 366 . 189 90 84 Remotely . | . . . . . . . . . Salvage Created 1001 | 111 177 96 . 408 . . . 209 Parts 64 | 5 12 3 . 34 . . . 10 Haulers Intercepted 2 | . 1 . . 1 . . . . Recyclers Shooed 2 | . 1 . . 1 . . . . Parts Field Recycled . | . . . . . . . . . Retrieved Matter . | . . . . . . . . . Parts Self-Destructed 31 | . . 13 . . . . . 18 Prevented 1 | . . . . . . . . 1 Kills | -11 -10 -10 -9 -7 -6 -6 -6 -6 ------- Run | Yrd Mat Sub Rec Fac Fac Was Fac Low Combat Hostiles Destroyed 25 | . 6 3 . 11 . . . 5 Melee 2 | . . . . 1 . . . 1 Guns 14 | . 6 3 . 3 . . . 2 Cannons 2 | . . . . . . . . 2 AOE 6 | . . . . 6 . . . . Classes Destroyed 9 | 3 3 1 . 2 . . . . Worker 5 | 1 . . . 4 . . . . Builder 2 | . . . . 2 . . . . Tunneler 1 | 1 . . . . . . . . Hauler 2 | . 1 . . 1 . . . . Recycler 2 | 1 . . . 1 . . . . Swarmer 14 | . 4 1 . 7 . . . 2 Grunt 7 | . 2 . . 3 . . . 2 Sentry 2 | . . . . 1 . . . 1 Subdweller 2 | . . 2 . . . . . . Best Kill Streak 6 | 2 2 2 . 6 . . . 5 Combat Bots Only 5 | . 2 2 . 3 . . . 5 Max Kills in Single Turn 3 | 1 1 1 . 3 . . . 1 Gunslinging . | . . . . . . . . . Exploded 1 | . . . . 1 . . . . Melee 1 | . . . . 1 . . . 1 Uniques/NPCs Destroyed . | . . . . . . . . . Combat | -11 -10 -10 -9 -7 -6 -6 -6 -6 -------- Run | Yrd Mat Sub Rec Fac Fac Was Fac Low Hostile Shots Fired 233 | . 39 18 . 65 . . 22 89 Missed 57 | . 12 4 . 20 . . 4 17 Damage Taken 3590 | . 246 360 . 696 . . 821 1467 Core 660 | . 36 109 . 101 . . 112 302 Absorbed by Shields . | . . . . . . . . . Ignored by Resistances 291 | . . . . . . . 60 231 Regen/Repaired (Parts) 503 | . 55 . . . . 152 296 . Core Remaining (%) 75 | 100 . . 42 85 . . . . Volleys Fired 82 | 10 28 20 . 15 . . . 9 Largest 5 | 2 2 2 . 4 . . . 5 Hottest 306 | 60 85 85 . 188 . . . 306 Shots Fired 203 | 20 56 40 . 50 . . . 37 Gun 164 | 20 56 40 . 28 . . . 20 Cannon 27 | . . . . 11 . . . 16 Launcher 12 | . . . . 11 . . . 1 Special . | . . . . . . . . . Kinetic 103 | 10 28 20 . 29 . . . 16 Thermal 73 | 10 28 11 . 8 . . . 16 Explosive 1 | . . . . . . . . 1 Electromagnetic 26 | . . 9 . 13 . . . 4 Robot Hit Streak 14 | 5 14 11 . 4 . . . 6 Robot Miss Streak 8 | 1 4 2 . 5 . . . 8 Penetration Max . | . . . . . . . . . Secondary Targets 2 | . 1 1 . . . . . . Max Gunslinging Chain 1 | . 1 1 . . . . . . Shots Hit Robots 135 | 13 36 34 . 31 . . . 21 Core Hits 79 | 4 14 12 . 36 . . . 13 Critical Kills 2 | 1 . . . . . . . 1 Critical Parts Destroyed 1 | . . . . . . . . 1 Critical Strikes 5 | 1 . 1 . . . . . 3 Burn 2 | . . 1 . . . . . 1 Destroy 3 | 1 . . . . . . . 2 Melee Attacks 15 | . . . . 5 . . . 10 Impact . | . . . . . . . . . Slashing . | . . . . . . . . . Piercing 15 | . . . . 5 . . . 10 Sneak Attacks 1 | . . . . 1 . . . . Combat Hostiles . | . . . . . . . . . Follow-up Attacks . | . . . . . . . . . Damage Inflicted 3055 | 119 403 463 . 1288 . . . 782 Guns 1467 | 119 385 463 . 255 . . . 245 Cannons 357 | . . . . 95 . . . 262 Explosions 842 | . . . . 729 . . . 113 Melee 353 | . . . . 191 . . . 162 Ramming 36 | . 18 . . 18 . . . . Kinetic 1544 | 55 153 222 . 852 . . . 262 Thermal 690 | 64 232 121 . 75 . . . 198 Explosive 113 | . . . . . . . . 113 Electromagnetic 319 | . . 120 . 152 . . . 47 Impact . | . . . . . . . . . Slashing . | . . . . . . . . . Piercing 353 | . . . . 191 . . . 162 Highest Corruption . | . . . . . . . . . Average Corruption . | . . . . . . . . . Corruption Purged . | . . . . . . . . . Corruption Blocked . | . . . . . . . . . Overload Shots . | . . . . . . . . . Overflow Damage 10 | . . . . 10 . . . . Projectiles . | . . . . . . . . . Explosions 10 | . . . . 10 . . . . Melee . | . . . . . . . . . Knockbacks 2 | . . . . 1 . . . 1 Impact . | . . . . . . . . . Kinetic 2 | . . . . 1 . . . 1 Secondary . | . . . . . . . . . Self-Inflicted Damage 93 | . . . . 93 . . . . Shots 3 | . . . . 3 . . . . Rammed 7 | . 4 . . 3 . . . . Targets Rammed 7 | . 4 . . 3 . . . . Kicked . | . . . . . . . . . Crushed . | . . . . . . . . . Highest Temperature 1198 | 40 258 10 . 422 . . 17 1198 Average Temperature 232 | 22 76 4 . 147 . . 17 662 Received Heat Transfer 997 | . 57 66 . 126 . . 27 721 Effects 45 | . . . . 3 . . . 42 Shutdowns 13 | . . . . . . . . 13 Energy Bleed 1 | . . . . . . . . 1 Interference 6 | . . . . 1 . . . 5 Matter Decay 2 | . . . . . . . . 2 Short Circuit 6 | . . . . 1 . . . 5 Damage (minor) 5 | . . . . 1 . . . 4 Damage (major) 10 | . . . . . . . . 10 Damage (core) 2 | . . . . . . . . 2 Siege Activations . | . . . . . . . . . Robots Corrupted 1 | . . . . 1 . . . . Combat Hostiles 1 | . . . . 1 . . . . Parts Fried 1 | . . . . 1 . . . . Impact Corruptions . | . . . . . . . . . Robots Melted . | . . . . . . . . . Combat Hostiles . | . . . . . . . . . Parts Melted 2 | . . 1 . . . . . 1 Heat Transferred 1673 | 150 557 370 . 111 . . . 485 Parts Sabotaged . | . . . . . . . . . Parts Stolen . | . . . . . . . . . Parts Stripped . | . . . . . . . . . Power Chain Reactions . | . . . . . . . . . Alert | -11 -10 -10 -9 -7 -6 -6 -6 -6 ------- Run | Yrd Mat Sub Rec Fac Fac Was Fac Low Peak Influence 331 | 15 145 . . 331 161 65 287 . Initial 161 | . 9 . . . 161 56 . . Average 57 | 5 50 . . 100 161 28 85 . Maximum Alert Level 1 | . . . . 1 . . 1 . Low Security (%) 93 | 100 100 . 100 72 100 100 90 . Level 1 6 | . . . . 27 . . 9 . Level 2 . | . . . . . . . . . Level 3 . | . . . . . . . . . Level 4 . | . . . . . . . . . Level 5 . | . . . . . . . . . High Security . | . . . . . . . . . Max Security . | . . . . . . . . . Squads Dispatched 5 | . . . . 3 1 . 1 . Investigation 1 | . . . . . 1 . . . Extermination 1 | . . . . . . . 1 . Reinforcement 3 | . . . . 3 . . . . Assault . | . . . . . . . . . Garrison . | . . . . . . . . . Intercept . | . . . . . . . . . Searches Triggered . | . . . . . . . . . Construction Impeded 1 | . . . . 1 . . . . Haulers Reinforced . | . . . . . . . . . Active Scanning Responses . | . . . . . . . . . Cargo Convoy Interrupts . | . . . . . . . . . Stealth | -11 -10 -10 -9 -7 -6 -6 -6 -6 --------- Run | Yrd Mat Sub Rec Fac Fac Was Fac Low Distress Signals . | . . . . . . . . . Communications Jammed . | . . . . . . . . . Distress Signals . | . . . . . . . . . Times Spotted 79 | . 13 33 . 14 . 1 8 10 Peak Tracking Total 7 | . 4 5 . 4 . 1 3 7 Tactical Retreats 4 | . 1 2 . 1 . . . . Traps | -11 -10 -10 -9 -7 -6 -6 -6 -6 ------- Run | Yrd Mat Sub Rec Fac Fac Was Fac Low Traps Triggered 2 | . . . . . 1 . 1 . Indirectly . | . . . . . . . . . Trap Hack Attempts . | . . . . . . . . . Triggered . | . . . . . . . . . Disarmed . | . . . . . . . . . Reprogrammed . | . . . . . . . . . Reused . | . . . . . . . . . Traps Extracted . | . . . . . . . . . Installed . | . . . . . . . . . Triggered 2 | . . . . . . . . 2 Machines | -11 -10 -10 -9 -7 -6 -6 -6 -6 ---------- Run | Yrd Mat Sub Rec Fac Fac Was Fac Low Machines Disabled 8 | . . . . 6 . . 2 . Max in Single Turn 4 | . . . . 4 . . . . Machines Repaired . | . . . . . . . . . Machines Dismantled . | . . . . . . . . . Machines Sabotaged . | . . . . . . . . . Overloaded Fab Kills . | . . . . . . . . . Hacking | -11 -10 -10 -9 -7 -6 -6 -6 -6 --------- Run | Yrd Mat Sub Rec Fac Fac Was Fac Low Machines Accessed 15 | . 5 . 3 1 1 . 5 . Terminals 11 | . 4 . 3 1 1 . 2 . Fabricators 1 | . . . . . . . 1 . Repair Stations 3 | . 1 . . . . . 2 . Recycling Units . | . . . . . . . . . Scanalyzers . | . . . . . . . . . Garrison Access . | . . . . . . . . . Total Hacks 34 | . 17 . 5 2 2 . 8 . Successful 11 | . 4 . . 2 . . 5 . Failed 23 | . 13 . 5 . 2 . 3 . Catastrophic 6 | . 3 . 2 . 1 . . . Database Lockouts . | . . . . . . . . . Manual 13 | . 8 . 3 . 2 . . . Terminals 26 | . 13 . 5 2 2 . 4 . Fabricators 1 | . . . . . . . 1 . Repair Stations 7 | . 4 . . . . . 3 . Recycling Units . | . . . . . . . . . Scanalyzers . | . . . . . . . . . Garrison Access . | . . . . . . . . . Terminal Hacks 6 | . 2 . . 2 . . 2 . Record 1 | . . . . . . . 1 . Branch Access Points 1 | . . . . . . . 1 . Locate Traps 2 | . 1 . . 1 . . . . Zone Layout 2 | . 1 . . 1 . . . . Fabricator Hacks 1 | . . . . . . . 1 . Network Status 1 | . . . . . . . 1 . Repair Station Hacks 4 | . 2 . . . . . 2 . Scan Component 2 | . 1 . . . . . 1 . Repair 2 | . 1 . . . . . 1 . Recycling Unit Hacks . | . . . . . . . . . Scanalyzer . | . . . . . . . . . Garrison Access Hacks . | . . . . . . . . . Unauthorized Hacks . | . . . . . . . . . Terminals . | . . . . . . . . . Fabricators . | . . . . . . . . . Repair Stations . | . . . . . . . . . Recycling Units . | . . . . . . . . . Scanalyzers . | . . . . . . . . . Garrison Access . | . . . . . . . . . Data Cores Recovered . | . . . . . . . . . Used . | . . . . . . . . . Hacking Detections 13 | . 5 . 3 1 1 . 3 . Full Trace Events 2 | . 1 . . . 1 . . . Feedback Events . | . . . . . . . . . Feedback Blocked . | . . . . . . . . . Robot Schematics Acquired . | . . . . . . . . . Robots Built . | . . . . . . . . . Authchips . | . . . . . . . . . Time . | . . . . . . . . . Total Robot Build Rating . | . . . . . . . . . Part Schematics Acquired . | . . . . . . . . . Parts Built . | . . . . . . . . . Authchips . | . . . . . . . . . Time . | . . . . . . . . . Total Part Build Rating . | . . . . . . . . . Parts Repaired 2 | . 1 . . . . . 1 . Time 82 | . 26 . . . . . 56 . Parts Recycled . | . . . . . . . . . Recycled Matter . | . . . . . . . . . Retrieved Matter . | . . . . . . . . . Retrieved Components . | . . . . . . . . . Parts Scanalyzed . | . . . . . . . . . Part Schematics Acquired . | . . . . . . . . . Parts Damaged . | . . . . . . . . . Bothacking | -11 -10 -10 -9 -7 -6 -6 -6 -6 ------------ Run | Yrd Mat Sub Rec Fac Fac Was Fac Low Used RIF Installer . | . . . . . . . . . Robots Hacked . | . . . . . . . . . Non-combat . | . . . . . . . . . Combat . | . . . . . . . . . Robot Hacks Applied . | . . . . . . . . . Relay Couplers Released . | . . . . . . . . . Fabnet Peak Effective % . | . . . . . . . . . Robots Rewired . | . . . . . . . . . Allies Hacked . | . . . . . . . . . Hacks Repelled . | . . . . . . . . . Allies | -11 -10 -10 -9 -7 -6 -6 -6 -6 -------- Run | Yrd Mat Sub Rec Fac Fac Was Fac Low Total Allies 20 | . . . . . . 20 . . Largest Group 20 | . . . . . . 20 20 2 Highest-Rated Group 770 | . . . . . . 770 770 75 Highest-Rated Ally 50 | . . . . . . 50 50 46 Total Orders . | . . . . . . . . . Ally Attacks 52 | . . . . . . 11 34 7 Total Damage 2197 | . . . . . . 547 1464 186 Kills 12 | . . . . . . 1 9 2 Allies Corrupted . | . . . . . . . . . Allies Melted . | . . . . . . . . . Intel | -11 -10 -10 -9 -7 -6 -6 -6 -6 ------- Run | Yrd Mat Sub Rec Fac Fac Was Fac Low Robot Analysis Total . | . . . . . . . . . Derelict Logs Recovered 2 | . . 1 . . . . . 1 Drone Launches . | . . . . . . . . . Drone Recoveries . | . . . . . . . . . Exploration | -11 -10 -10 -9 -7 -6 -6 -6 -6 ------------- Run | Yrd Mat Sub Rec Fac Fac Was Fac Low Turns Passed 4520 | 133 889 464 265 606 87 871 630 575 Spaces Moved 2468 | 58 483 232 220 359 52 433 316 315 Core 4 | 4 . . . . . . . . Treads 2171 | 54 483 232 41 252 52 433 309 315 Legs . | . . . . . . . . . Wheels 286 | . . . 179 107 . . . . Hover 7 | . . . . . . . 7 . Flight . | . . . . . . . . . Fastest Speed 50 | 50 160 160 90 90 160 160 160 160 Average Speed 165 | 158 160 170 118 141 160 196 191 160 Slowest Speed 740 | 200 240 240 240 160 160 240 740 240 Overloaded Moves . | . . . . . . . . . Propulsion Burnouts . | . . . . . . . . . Robots Hopped . | . . . . . . . . . Cave-ins Triggered . | . . . . . . . . . Exploration Rate (%) 31 | 5 59 14 47 11 2 97 8 43 Regions Visited 8 Branch Regions 3 Pre-discovered Areas 2 | . . 1 . . . . . 1 Known Exits Taken 1 | . . . . . . . 1 . Unknown Exits Taken 5 | 1 1 1 1 1 . . . . Scrap Searched 14 | . . 10 . . . . . 4 Spaces Dug . | . . . . . . . . . Terrain Destroyed 129 | . . . . 110 . . . 19 Melee . | . . . . . . . . . Projectile 6 | . . . . 1 . . . 5 AOE 123 | . . . . 109 . . . 14 Terrain Rammed . | . . . . . . . . . Walls Destroyed . | . . . . . . . . . Machines Disabled . | . . . . . . . . . Actions | -11 -10 -10 -9 -7 -6 -6 -6 -6 --------- Run | Yrd Mat Sub Rec Fac Fac Was Fac Low Total 2735 | 78 543 267 225 416 58 455 342 351 Wait 17 | . 3 2 . 1 . . . 11 Move 2462 | 57 482 231 219 359 52 432 315 315 Hop . | . . . . . . . . . Pick Up 39 | 4 11 5 1 5 . 6 5 2 Fast Attach 33 | 7 3 2 2 7 1 4 7 . Attach 15 | . . . . 8 2 1 3 1 Detach 15 | . . . 1 5 2 1 6 . Swap 12 | . 4 . . 5 . . 2 1 Drop 36 | . 8 7 2 4 1 8 4 2 Fire 82 | 10 28 20 . 15 . . . 9 Melee 15 | . . . . 5 . . . 10 Ram . | . . . . . . . . . Kick . | . . . . . . . . . Crush 6 | . 4 . . 2 . . . . Escape Stasis . | . . . . . . . . . Rewire 3 | . . . . . . 3 . . Trap . | . . . . . . . . . Miscellaneous . | . . . . . . . . . Route ------- -11/Scrapyard -10/Materials (discovered 3 exits: [*Mat] / [*Min] / [*Sub]) -10/Subcaves -9/Recycling -7/Factory -6/Factory -6/Waste -6/Factory (discovered 2 exits: *Low x2) -6/Lower Caves History --------- Turn | Location | Event 19 | -11/Scrapyard | Discovered new exit (range 14) 134 | -11/Scrapyard | Entered Materials 304 | -10/Materials | Discovered new exit (range 11) 306 | -10/Materials | Build established: Mutant 333 | -10/Materials | Discovered new exit (range 19) 697 | -10/Materials | Repaired Lgt. Treads 1006 | -10/Materials | Discovered new exit (range 6) 1023 | -10/Materials | Entered Subcaves 1133 | -10/Subcaves | Disturbed a concealed Subdweller 1149 | -10/Subcaves | Learned location of Zion (-6) 1245 | -10/Subcaves | Ambushed by swarm of Subdwellers 1247 | -10/Subcaves | Ambushed by Subdwellers from Twisted Machinery 1413 | -10/Subcaves | Core integrity fell below 50% 1424 | -10/Subcaves | Discovered new exit (range 16) 1487 | -10/Subcaves | Entered Recycling 1488 | -9/Recycling | Met a Zionite searching for Scraptown 1736 | -9/Recycling | Discovered new exit (range 16) 1752 | -9/Recycling | Entered Factory 1752 | -7/Factory | Evolved 6 slots: Power x1, Propulsion x1, Utility x2, Weapon x2 2120 | -7/Factory | Build established: Infiltrator-Tank 2242 | -7/Factory | Discovered new exit (range 14) 2358 | -7/Factory | Entered another Factory area 2358 | -6/Factory | Evolved 2 slots: Utility x1, Weapon x1 2445 | -6/Factory | Sucked down chute 2445 | -6/Factory | Entered Waste 2446 | -6/Waste | Joined by Warlord forces that had cleared the area 2574 | -6/Waste | Build established: Infiltrator-Gunner 2605 | -6/Waste | A Compactor rumbled back to life 2605 | -6/Waste | Spotted C-40 Crusher 2607 | -6/Waste | Allies destroyed C-40 Crusher 2631 | -6/Waste | Discovered new exit (range 13) 3085 | -6/Waste | Build established: Gunner 3316 | -6/Waste | Entered Factory 3316 | -6/Factory | Accompanied by 20 allies 3395 | -6/Factory | Lost 3 parts (1n1u1w) 3395 | -6/Factory | Lost 9 allies 3578 | -6/Factory | Lost 5 allies 3620 | -6/Factory | Repaired Hvy. Treads 3696 | -6/Factory | Identified exit to Lower Caves 3805 | -6/Factory | Found Prototype Launcher 3811 | -6/Factory | Found Hvy. Reactive Plating 3929 | -6/Factory | Lost 3 allies 3946 | -6/Factory | Entered Lower Caves 3946 | -6/Lower Caves | Accompanied by 2 allies 4114 | -6/Lower Caves | Build established: Tank 4260 | -6/Lower Caves | Spotted B-75 Beast 4445 | -6/Lower Caves | Attracted the attention of an 0b10 base 4521 | -6/Lower Caves | Self-destructed Last Messages --------------- 04509_ Acquired 32 matter. 04511_ Acquired 1 matter. 04512_ Hvy. Reactive Plating destroyed. 04513_ Acquired 5 matter. 04514_ Hvy. Treads broken. 04514_ Overheating: Short circuit. 04515_ Power failure, Mic. Nuclear Core shutdown. 04515_ Power failure, Lgt. Nuclear Core shutdown. 04515_ Plasma Rifle broken. 04515_ Overheating: Short circuit. 04516_ Overheating: System interference. 04516_ Slug Cannon temporarily disabled. 04518_ Overheating: Broken Plasma Rifle damaged (-26). 04518_ Overheating: Lrg. Storage Unit damaged (-182). 04521_ Overheating: Mak. Spear damaged (-3). 04521_ Mak. Spear destroyed. Map ----- +----------------------------------------------------+ | ?????## ## ##??????????????????????????? | | ????## #??????????????????????????? | | ???## ## ##??????????????????????????? | | ??## ##### ##???????????????????????????? | | ?## ##?## ##????????????????????????????? | | ?# ### ##????????????????????????????? | | ?## ## ##???????????????????????????? | | ??# ### #???????????????????????????? | | ??# ##### #???????????????????????????? | | ??## ##?## ##???????????????????????????? | | ??##= #??# ##????????????????????????????? | | ?##% ## #??# #?????????????????????????????? | | ## ! ##?# ##??# #?????????????????????????????? | | # ###???##???# #?????????????????????????????? | | ##?????????## #?????????????????????????????? | | ###?????????## ####??????????????????????????? | | #???????????# ##?????????????????????????? | | !##??????????# ####??##??????????????????? | | % ##?????????## ";;###"#??????????????????? | | ##### ??# % %% #??????????????????? | | #??# %% %#??????????????????? | | ####?# ######+#;## #??????????????????? | | ## ###????# #"""" """# #??????????????????? | | #?# #??????## #""T" g #??????????????????? | | ##? ##???????# # # #??????????????????? | | #?##????????# + @ # #??????????????????? | | #???????????# #" # #??????????????????? | | #????##?????# #" + #??????????????????? | | #???# ##????# #" """# #??????????????????? | | #??# #????# ?#" ???# #??????????????????? | | #?# #????# ?#" ???# #???????????#######? | | ## #????# ?#######???# #???????????# """"#? | | #????# ??????????? #???????????#" ""#? | | ##???????????????? #???????????#"" "#? | | ##??????????????#####???????????## "##? | | ####### ????????????????????##### "##? | | ??????????########### ##"" "## | | ????##????# | | ###???????# ##?## | | % ##?????????# ## ####### ## | | ###????????### ##?????# ## # | | % ## ##??????????# #??????# ## | | % ##?###???????????## ###??### ### ##? | | % ###########?###??####### #### #?####?? | | ## #?# ##???????# #??????? | | ## #?# ###?##### ####???? | | %## ### ### ## ###?? | | ### ##? | | ### #? | | "### ####### ### ## | +----------------------------------------------------+ Best States ------------- Heat Dissipation 64 Energy Generation 24 Energy Capacity 275 Matter Stores 300 Matter Capacity 300 Sight Range 16 Terrain Scan Range 16 Terrain Scan Density 10 ECM Strength 1 Armor Coverage 600 Resistance: KI 40 Evasion (%) 42 Recoil Reduction 3 Particle Charging 15 Item Schematics ----------------- None Robot Schematics ------------------ None Fabricated ------------ Nothing Alien Tech Used ----------------- None Achievements -------------- We Are Legion Challenges ------------ None Game ------ Seed ComponentWeaponNetwork Manual? 0 Play Time 01:07:03 Cumulative 19.4 hours Start 2024.08.10 @ 09:28:02 End 2024.08.10 @ 10:46:46 Sessions 1 Manual Loads 0 Difficulty Rogue Special Mode None Game No. 27 Rogue 27 Adventurer 0 Explorer 0 Win Type - Total 0 Types 0/0/0/0/0/0/0/0/0 Lore% 8 Gallery% 17 Achievement% 13 Wizard Run 0 Options --------- Layout 1 ASCII 0 Keyboard 0 Movement Numpad Keybinds 0 Fullscreen 1 Font 32/SmallcapsGlow Map View 50x40 Zoom Use 24% Tactical HUD 1 Map Filters NONE Filters NONE Steam 1 RUN: 02219b14-1e74-4e18-88fb-bd0cc51d1107